Workbook

Sheet PY-Authorization
B2: Yuba County Office of Education PAYROLL PROCESSING AUTHORIZATION
D5: To: | E5: Fiscal Tech (fiscal.tech@yubacoe.k12.ca.us)
D7: Organization: | F7: =IF(E7="","",VLOOKUP(fOrganization,org2name,2,FALSE)) ->  | O7: =fUniqueKey -> DDD757 | P7: <=Add this text to your file name for uniqueness (only once for each new file)
D9: Pay Type:
D10: Pay Date: | G10: Fiscal Year:
D11: Net Pay:
D12: Submit Date:
C19: EMPLOYEE ID
C25: SELECTION CRITERIA
C26: Employee Information
D27: EmpBargng Unit
G32: AUTHORIZATION
G34: You are authorized to process this payroll
G37: Authorized By
G39: Title
G42: Date
C46: INSTRUCTIONS:
C48: Complete all fields after payroll has been submitted in Payroll Status activity using data from the screen.
C49: Save authorization file with filename format PY-Authorization-XX-YYYYMMDD-UUUUUU.xls
C50: Email the file to Fiscal Tech before the processing cutoff date & time
C51: Use an email subject of PY-Authorization-XX-YYYYMMDD-UUUUUU
C52: XX-YYYYMMDD-UUUUUU ( XX = Org Number (eg 10), YYYYMMDD = full year, Month, and Date of payroll, UUUUUU = unique identifier [see cell O7])
C53: Add either BM or BW directly after Org Number (no dash or space) to indicate Bi-Monthly (BM) or Bi-Weekly (BW) payroll authorizationscell O7])
C54: Important: File name and email subject are used for automated processesing.
C55: Please be sure to use exact format/pattern indicated above for both items.

Sheet automation (hidden)
J2: 2
A6: Org | B6: Name
H7: UniquenessGenerator | J7: Generates a random PLUS time based key to add to file name for uniqueness
A8: 10 | B8: Yuba County Schools
A9: 20 | B9: Plumas Elementary | H9: =RANDBETWEEN(65,70) -> 67 | I9: =CHAR(H9) -> C
A10: 30 | B10: Wheatland Union High School | H10: 70 | I10: =CHAR(H10) -> F | J10: =INT(AVERAGE(H9:H11)) -> 68 | K10: =CHAR(J10) -> D
A11: 40 | B11: Camptonville Union | H11: 68 | I11: D
A12: 50 | B12: Camptonville Academy | H12: 69 | I12: E | J12: =INT(AVERAGE(H11:H13)) -> 68 | K12: =CHAR(J12) -> D
H13: 68 | I13: D
H14: 69 | I14: E | J14: =INT(AVERAGE(H13:H15)) -> 68 | K14: =CHAR(J14) -> D
H15: 67 | I15: C
H18: =NOW() -> 2018-01-31T17:02:15.860 | I18: =YEAR($H$18) -> 2018 | J18: =I18*10 -> 20180 | K18: =SUM(J18:J20) -> 21490
I19: =MONTH($H$18) -> 1 | J19: =I19*1000 -> 1000
I20: =DAY($H$18) -> 31 | J20: =I20*10 -> 310
I21: =HOUR($H$18) -> 17 | J21: =I21*1000 -> 17000 | K21: =SUM(J21:J23) -> 17360
I22: =MINUTE($H$18) -> 2 | J22: =I22*100 -> 200
I23: =SECOND($H$18) -> 16 | J23: =I23*10 -> 160
K24: =K21+K18 -> 38850 | L24: =K24/256 -> 151.7578125
L26: =INT(L24) -> 151 | N26: =LEFT(INT((L24-L26)*1000) & INT(RAND()*10) & INT(RAND()*10) & INT(RAND()*9),3) -> 757
H28: Unique Key: | I28: =K10&K12&K14&N26 -> DDD757
